bitfinex-derivatives/quotes_ETHF0:USTF0_20250410
["timestamp","ask_amount","ask_price","bid_price","bid_amount"]
[1744307183632,5.62505,1511.1,1511.0,1.32445]
[1744307184019,5.62505,1511.1,1510.8,6.51955]
[1744307184020,7.61175,1511.1,1510.7,7.44]
[1744307184323,7.61175,1511.1,1510.9,1.32461]
[1744307184324,1.32459,1511.0,1510.9,1.32461]
[1744307184524,1.32461,1510.9,1510.6,10.63958]
[1744307184818,1.32439,1511.2,1511.1,1.32443]
[1744307185024,9.16152,1511.9,1511.2,3.31087]
[1744307185224,9.16152,1511.9,1511.5,4.53188]
[1744307185421,11.88064,1512.0,1511.3,3.2078]
[1744307185422,3.2078,1511.7,1511.3,3.2078]
[1744307185626,3.30957,1511.8,1511.4,1.32416]
[1744307185831,3.3098,1511.7,1511.3,4.53199]
[1744307186035,1.32426,1511.3,1511.2,0.00994199]
[1744307187329,4.53206,1511.3,1511.2,0.00994199]
[1744307187731,5.60366,1511.3,1511.2,0.00994199]
[1744307188527,4.2794,1511.3,1511.2,1.33429199]
[1744307188732,4.3953,1511.5,1511.2,0.00994199]
[1744307188934,1.32426,1511.3,1511.2,0.00994199]
[1744307189633,5.77286,1511.3,1511.2,0.00994199]
[1744307189928,5.77286,1511.3,1511.2,1.33429199]
[1744307190231,1.32414,1511.5,1511.4,1.32417]
[1744307190440,1.3241,1511.5,1511.4,1.3241]
[1744307190628,1.32426,1511.3,1511.2,4.54203199]
[1744307190828,5.77276,1511.5,1511.4,1.32417]
[1744307191131,4.4486,1511.5,1511.4,1.32417]
[1744307191326,1.43301762,1511.6,1511.5,1.32408]
[1744307191527,0.10901762,1511.6,1511.2,3.21774199]
[1744307191727,1.3242,1511.4,1511.3,1.3242]
[1744307192335,5.77276,1511.5,1511.4,1.32417]
[1744307192536,1.32409,1511.5,1511.4,1.32409]
[1744307192832,1.43306762,1511.6,1511.5,1.32408]
[1744307193435,1.43306762,1511.6,1511.4,9.1254]
[1744307193436,1.32408,1511.5,1511.4,9.1254]
[1744307193635,1.32408,1511.5,1511.4,5.9176]
[1744307193833,5.77738,1511.5,1511.4,4.5935]
[1744307194030,5.77738,1511.5,1511.4,5.91767]
[1744307194530,4.4533,1511.5,1511.4,5.91767]
[1744307195235,5.77738,1511.5,1511.4,5.91767]
[1744307195434,4.4533,1511.5,1511.4,5.91767]
[1744307195734,4.4533,1511.5,1511.3,1.32419]
[1744307195934,5.7774,1511.5,1511.4,1.32417]
[1744307196137,4.4533,1511.5,1511.4,1.32417]
[1744307196337,1.43307762,1511.6,1511.5,1.32408]
[1744307196732,1.32426,1511.3,1511.2,0.00994199]
[1744307197339,1.32418,1511.4,1511.3,1.32426]
[1744307197536,1.32418,1511.4,1511.2,0.00994199]
[1744307197537,1.32426,1511.3,1511.2,0.00994199]
[1744307198039,5.74716,1511.3,1511.2,0.00994199]
[1744307198739,5.74716,1511.3,1511.2,1.33429199]
[1744307198937,5.74716,1511.3,1511.2,0.00994199]
[1744307200038,10.74716,1511.3,1511.2,1.99e-06]
[1744307200236,16.59916,1511.3,1511.2,1.99e-06]
[1744307201343,1.32492,1510.6,1510.5,1.32492]
[1744307202237,4.5261,1510.7,1510.4,4.6051]
[1744307202545,5.85113,1510.5,1510.4,1.33499199]
[1744307202741,5.85113,1510.5,1510.4,0.00994199]
[1744307203238,5.85113,1510.5,1510.4,1.33499199]
[1744307203439,4.5261,1510.5,1510.4,1.33499199]
[1744307203842,0.00994199,1510.6,1510.5,1.32496]
[1744307204044,0.00994199,1510.6,1510.5,5.81886]
[1744307204248,0.00994199,1510.6,1510.5,10.81886]
[1744307204541,0.00994199,1510.6,1510.5,14.02666]
[1744307204738,3.21774199,1510.6,1510.4,1.33494199]
[1744307204947,6.00126,1510.5,1510.4,0.00994199]
[1744307205242,1.3254,1510.0,1509.9,10.31516498]
[1744307205541,3.31289,1510.3,1509.9,10.31516498]
[1744307205542,1.32534,1510.1,1509.9,10.31516498]
[1744307205841,4.6763,1510.2,1510.1,1.32528]
[1744307206144,4.6763,1510.2,1510.1,1.32531]
[1744307206548,5.852,1510.4,1510.1,1.32531]
[1744307206746,6.00148,1510.3,1510.2,1.32522]
[1744307207037,4.6763,1510.3,1510.2,1.32522]
[1744307207241,1.32531,1510.1,1510.0,0.00994199]
[1744307207441,4.53311,1510.1,1510.0,0.00994199]
[1744307207632,9.53311,1510.1,1510.0,0.00994199]
[1744307207837,8.91761,1510.1,1510.0,0.00994199]
[1744307208139,4.3845,1510.1,1510.0,1.33534199]
[1744307208338,5.70981,1510.1,1510.0,5.69874199]
[1744307208546,5.70981,1510.1,1510.0,0.00994199]
[1744307209746,3.31384,1509.9,1509.4,4.6344]
[1744307209946,4.3845,1509.8,1509.3,4.3634]
[1744307210243,1.32575,1509.6,1509.5,1.32579]
[1744307210440,4.3845,1509.8,1509.3,4.3634]
[1744307210645,1.32601,1509.3,1509.2,3.2078]
[1744307210844,3.2078,1509.5,1509.4,0.00994199]
[1744307211143,4.53364,1509.5,1509.4,0.00994199]
[1744307212341,1.32584,1509.5,1509.4,0.00994199]
[1744307213543,4.53364,1509.5,1509.4,0.00994199]
[1744307214644,1.32584,1509.5,1509.4,0.00994199]
[1744307214850,9.06974199,1509.7,1509.4,0.00994199]
[1744307215049,1.32584,1509.5,1509.4,1.33583199]
[1744307215349,0.00994199,1509.7,1509.6,1.32575]
[1744307215648,0.00994199,1509.7,1509.5,5.84649]
[1744307215846,1.32584,1509.5,1509.4,0.00994199]
[1744307216148,4.53364,1509.5,1509.4,0.00994199]
[1744307217042,1.32645,1508.8,1508.7,4.6757]
[1744307217347,3.2078,1508.8,1508.5,1.32671]
[1744307217542,3.2078,1508.8,1508.4,12.0998]
[1744307217742,1.32672,1508.5,1508.4,5.7113]
[1744307217942,3.2078,1508.6,1508.4,4.3845]
[1744307218143,1.32657,1508.7,1508.4,4.3845]
[1744307218447,4.54435199,1508.7,1508.5,1.32665]
[1744307218650,3.21774199,1508.7,1508.4,4.3845]
[1744307218950,4.54433199,1508.7,1508.5,1.32665]
[1744307219151,3.21774199,1508.7,1508.6,1.32663]
[1744307219347,0.00994199,1508.7,1508.6,1.32663]
[1744307219554,0.00994199,1508.7,1508.6,6.32663]
[1744307219751,0.00994199,1508.7,1508.6,9.53443]
[1744307219946,1.99e-06,1508.7,1508.6,9.53443]
[1744307220148,1.99e-06,1508.7,1508.6,25.99713]
[1744307221154,3.2078,1509.6,1509.5,1.32584]
[1744307221348,7.62262,1509.7,1509.3,1.32599]
[1744307221549,3.2078,1509.6,1509.2,1.32604]
[1744307221751,3.2078,1509.6,1509.4,1.32588]
[1744307221955,7.71758276,1509.5,1509.4,1.32586]
[1744307223154,7.71758276,1509.5,1509.4,4.53366]
[1744307223351,7.71758276,1509.5,1509.4,1.32586]
[1744307223657,7.71758276,1509.5,1509.4,4.53366]
[1744307223950,7.71758276,1509.5,1509.4,1.32586]
[1744307224249,1.32593,1509.4,1509.3,0.00994199]
[1744307224440,1.32593,1509.4,1508.5,6.63318]
[1744307224441,1.32641,1508.9,1508.7,8.8774]
[1744307224644,1.32668,1508.6,1508.3,3.31719]
[1744307224848,3.2078,1508.8,1508.3,3.31719]
[1744307224849,1.32656,1508.7,1508.6,1.32657]
[1744307225256,1.32686,1508.4,1508.3,1.32687]
[1744307225550,3.31757,1508.2,1507.5,3.2078]
[1744307225745,7.6869,1508.3,1508.2,0.00994199]
[1744307225944,4.53469,1508.3,1508.2,0.00994199]
[1744307226144,13.30098199,1508.5,1508.3,1.32689]
[1744307226349,4.40464199,1508.5,1508.2,0.00994199]
[1744307226653,0.00994199,1508.5,1508.4,1.3268]
[1744307227255,0.00994199,1508.5,1508.3,1.32684]
[1744307227447,3.21774199,1508.5,1508.2,0.00994199]
[1744307227753,1.32689,1508.3,1508.2,1.33689199]
[1744307227954,1.32689,1508.3,1508.2,0.00994199]
[1744307228254,4.53469,1508.3,1508.2,0.00994199]
[1744307228452,1.32716,1508.0,1507.9,13.39798743]
[1744307229149,3.2078,1508.4,1507.9,16.60578743]
[1744307229351,1.32693,1508.3,1508.1,1.32701]
[1744307229655,1.32711,1508.1,1508.0,0.00994199]
[1744307230157,6.32711,1508.1,1508.0,1.99e-06]
[1744307230357,15.59711,1508.1,1508.0,1.99e-06]
[1744307231148,10.59711,1508.1,1508.0,1.99e-06]
[1744307231451,1.32711,1508.1,1508.0,1.99e-06]
[1744307231653,1.32756,1507.6,1507.4,5.83717]
[1744307231860,3.2078,1507.7,1507.2,3.2078]
[1744307232053,6.52694,1507.5,1507.1,4.5969]
[1744307232247,3.2078,1507.5,1507.2,1.32783]
[1744307232455,1.32777,1507.4,1507.2,1.32783]
[1744307232955,1.32777,1507.3,1507.1,5.93143809]
[1744307233154,1.32777,1507.3,1507.2,4.4686]
[1744307233655,1.32786,1507.2,1507.1,0.00662809]
[1744307235347,1.32786,1507.2,1507.1,4.53652809]
[1744307235553,1.32784,1507.3,1507.1,5.86447809]
[1744307235961,6.53679199,1507.5,1507.1,7.74432809]
[1744307235962,3.21774199,1507.5,1507.1,7.74432809]
[1744307236257,3.21774199,1507.5,1507.2,4.5299]
[1744307236458,0.00994199,1507.5,1507.4,1.32769]
[1744307236761,0.00994199,1507.5,1507.4,5.85759]
[1744307237055,0.00994199,1507.5,1507.4,10.85759]
[1744307237258,0.00994199,1507.5,1507.4,15.56989]
[1744307238260,1.32713,1508.1,1507.9,1.32724]
[1744307238450,1.32713,1508.1,1508.0,4.3923]
[1744307238647,3.31702,1508.4,1508.0,5.7194]
[1744307238856,8.7968,1508.5,1508.3,1.32686]
[1744307239053,1.32689,1508.3,1508.0,7.6001]
[1744307239252,1.32688,1508.4,1508.2,1.32693]
[1744307239464,1.32707,1508.1,1508.0,0.00994199]
[1744307240460,0.00994199,1508.3,1508.2,1.32698]
[1744307241157,0.00994199,1508.3,1508.0,0.00994199]
[1744307241460,1.32707,1508.1,1508.0,0.00994199]
[1744307241851,9.53487,1508.1,1508.0,0.00994199]
[1744307243262,1.32707,1508.1,1508.0,0.00994199]
[1744307243852,0.00994199,1508.3,1508.0,5.00994199]
[1744307244056,5.68998199,1508.3,1508.1,1.32707]
[1744307244255,4.36304199,1508.3,1508.2,1.32698]
[1744307244455,5.68998199,1508.3,1508.1,1.32701]
[1744307244757,5.68998199,1508.3,1508.0,4.49204199]
[1744307244758,4.36304199,1508.3,1508.0,4.49204199]
[1744307244954,5.68996199,1508.3,1508.0,4.49204199]
[1744307245155,5.68996199,1508.3,1508.2,1.32698]
[1744307245356,4.36304199,1508.3,1508.2,1.32698]
[1744307245859,4.36304199,1508.3,1508.0,0.00994199]
[1744307245860,1.32707,1508.1,1508.0,0.00994199]
[1744307246251,1.327,1508.2,1508.0,0.00994199]
[1744307246460,4.36304199,1508.3,1508.0,3.21774199]
[1744307246666,0.00994199,1508.3,1508.2,4.53478]
[1744307246974,1e-08,1508.3,1508.2,4.53478]
[1744307248161,1e-08,1508.3,1508.2,1.32698]
[1744307248369,1.32707,1508.1,1508.0,3.21774199]
[1744307248559,1.32707,1508.1,1508.0,0.00994199]
[1744307248758,1.32756,1507.6,1507.3,3.2078]
[1744307249058,4.3852,1508.0,1507.7,1.32739]
[1744307249258,4.3852,1507.8,1507.7,4.53519]
[1744307249459,5.71258,1507.8,1507.6,1.32745]
[1744307249658,4.3852,1507.8,1507.4,3.2078]
[1744307249957,4.3852,1507.8,1507.4,0.00994199]
[1744307250262,1.32758,1507.6,1507.4,0.00994199]
[1744307250462,5.1401,1507.5,1507.4,0.00994199]
[1744307251066,13.3479,1507.5,1507.4,1e-08]
[1744307252260,13.3479,1507.5,1506.6,3.2078]
[1744307252261,1.3283,1506.7,1506.6,3.2078]
[1744307252461,3.2078,1506.9,1506.4,24.1971441]
[1744307252666,5.14093,1506.6,1506.4,21.9501441]
[1744307252861,1.32848,1506.5,1506.4,20.6216441]
[1744307253061,1.32848,1506.5,1506.3,1.32859]
[1744307253062,4.88478,1506.5,1506.3,1.32859]
[1744307253366,3.5563,1506.5,1506.2,0.00662808]
[1744307253755,4.88486,1506.5,1506.3,1.32865]
[1744307253958,1.32859,1506.4,1506.2,1.33531808]
[1744307254166,3.5563,1506.3,1506.2,1.33531808]
[1744307254371,7.43194199,1506.6,1506.2,0.00662808]
[1744307254565,3.5563,1506.5,1506.3,4.53643]
[1744307254769,3.5563,1506.5,1506.4,1.32857]
[1744307255064,4.88484,1506.5,1506.3,1.32861]
[1744307255462,1.32857,1506.4,1506.3,1.32865]
[1744307255667,1.32865,1506.3,1506.2,0.00662808]
[1744307257873,4.88494,1506.4,1506.3,1.32865]
[1744307258063,1.32852,1506.5,1506.4,1.32857]
[1744307258366,0.00994199,1506.6,1506.2,0.00662808]
[1744307258367,1.32865,1506.3,1506.2,0.00662808]
[1744307258575,5.16147,1506.4,1506.3,1.32865]
[1744307258768,1.32865,1506.3,1506.2,0.00662808]
[1744307259074,8.36935,1506.3,1506.2,0.00662808]
[1744307259273,17.22955,1506.3,1506.2,0.00662808]
[1744307259670,17.22955,1506.3,1506.2,8.08e-06]
[1744307260167,3.32231,1506.0,1505.2,6.9384]
[1744307260379,1.32927,1505.6,1505.2,10.26245]
[1744307260572,1.32928,1505.6,1505.4,1.32939]
[1744307260767,3.2078,1505.7,1505.3,1.32952]
[1744307260969,1.32939,1505.5,1505.3,1.32952]
[1744307261171,3.9016,1505.6,1505.2,6.9384]
[1744307261368,5.24083199,1505.6,1505.4,1.32939]
[1744307261675,5.24088199,1505.6,1505.4,1.32945]
[1744307261877,3.91154199,1505.6,1505.2,6.9384]
[1744307262069,1.3294,1505.5,1505.3,1.32951]
[1744307262372,5.24082199,1505.6,1505.4,1.32944]
[1744307262576,1.32936,1505.5,1505.4,1.32944]
[1744307262775,3.7646,1505.5,1505.3,1.32947]
[1744307262972,3.7646,1505.5,1505.0,3.2078]
[1744307263175,1.32959,1505.3,1505.2,1.32963]
[1744307263373,11.1926,1505.5,1505.0,3.2078]
[1744307263568,3.7646,1505.2,1505.1,5.03986]
[1744307264470,5.09423,1505.2,1505.1,3.7102]
[1744307264674,3.7646,1505.2,1505.1,5.03991]
[1744307265768,1.32955,1505.3,1505.1,3.7102]
[1744307265969,5.17545,1505.3,1505.2,1.32959]
[1744307266174,5.17551,1505.3,1505.2,1.32963]
[1744307266370,3.8459,1505.3,1504.8,6.8704]
[1744307266579,10.37776,1505.3,1504.9,5.00532]
[1744307266768,1.32977,1505.1,1505.0,1.32979]
[1744307266972,1.32979,1505.1,1504.9,5.00532]
[1744307267263,1.32966,1505.2,1505.1,1.32969]
[1744307267476,3.8459,1505.2,1505.1,5.00519]
[1744307267675,1.32952,1505.4,1505.3,1.32954]
[1744307267880,1.32954,1505.3,1505.2,1.32958]
[1744307268069,5.17542,1505.4,1505.3,1.32954]
[1744307268271,1.32957,1505.3,1505.2,1.32959]
[1744307268475,5.13847,1505.3,1505.2,1.32959]
[1744307269376,1.32972,1505.1,1505.0,1.32974]
[1744307269774,5.13846,1505.3,1505.2,1.32963]
[1744307270479,10.75143,1505.5,1505.3,1.32954]
[1744307270480,1.32949,1505.4,1505.3,1.32954]
[1744307270772,1.32954,1505.3,1505.2,5.09285]
[1744307271179,5.13842,1505.4,1505.3,1.32954]
[1744307271578,1.32954,1505.3,1505.2,3.7633]
[1744307271777,5.26064,1505.3,1505.2,5.09293]
[1744307272480,3.9311,1505.3,1505.2,5.09293]
[1744307272778,1.32951,1505.4,1505.3,1.32954]
[1744307272972,5.26061,1505.4,1505.3,1.32954]
[1744307273372,1.32943,1505.5,1505.4,1.32945]
[1744307273579,5.27038199,1505.6,1505.5,1.32936]
[1744307273878,3.94104199,1505.6,1505.5,4.53716]
[1744307274079,5.27031199,1505.6,1505.5,1.32936]
[1744307274280,1.32936,1505.5,1505.4,4.90949]
[1744307274778,1.32963,1505.2,1505.1,3.2078]
[1744307275079,1.3296,1505.3,1505.2,1.32958]
[1744307275283,1.32941,1505.5,1505.4,1.32939]
[1744307275578,3.32341,1505.5,1505.1,3.2078]
[1744307275881,1.32956,1505.3,1505.2,1.32955]
[1744307276079,1.32956,1505.3,1505.2,5.23113]
[1744307276779,1.32971,1505.1,1505.0,1.32976]
[1744307276967,1.32957,1505.3,1505.2,1.32955]
[1744307277277,11.2778,1505.5,1505.1,3.9015]
[1744307277483,1.32963,1505.2,1505.1,3.9015]
[1744307277782,1.33003,1504.8,1504.7,1.33]
[1744307277975,1.33003,1504.8,1504.7,4.9279]
[1744307278177,1.32982,1505.0,1504.9,1.32981]
[1744307278579,1.32982,1505.0,1504.9,1.3298]
[1744307278580,1.32983,1505.0,1504.9,1.3298]
[1744307279277,1.3298,1505.0,1504.9,1.3298]
[1744307279673,1.3298,1505.0,1504.9,4.9277]
[1744307279873,1.33001,1504.8,1504.7,1.33]
[1744307280074,1.33001,1504.8,1504.7,4.9279]
[1744307280275,5.21936,1504.9,1504.8,1.32998]
[1744307280477,3.2078,1505.3,1504.7,11.8057]
[1744307280782,4.53743,1505.3,1505.2,1.32963]
[1744307280979,1.32971,1505.1,1505.0,1.32976]
[1744307281269,3.32451,1505.0,1504.5,3.2078]
[1744307281478,3.32451,1505.0,1504.7,3.6568]
[1744307281479,1.32992,1504.9,1504.7,3.6568]
[1744307281681,1.32998,1504.8,1504.7,4.9868]
[1744307282085,1.32993,1504.9,1504.8,1.32996]
[1744307282382,7.23631,1505.2,1504.8,1.32996]
[1744307282383,1.32967,1505.2,1505.1,1.32965]
[1744307282587,1.32968,1505.2,1505.1,1.32965]
[1744307282777,4.53741,1505.3,1505.2,1.32963]
[1744307282972,1.32968,1505.2,1505.1,1.32965]
[1744307283278,1.32963,1505.2,1505.1,4.98643]
[1744307283473,3.2078,1505.3,1505.1,3.6568]
[1744307283678,3.2078,1505.3,1505.2,5.24063]
[1744307284088,1.33924199,1505.6,1505.5,1.32936]
[1744307284394,0.00994199,1505.6,1505.5,1.32936]
[1744307284588,3.33331199,1505.6,1505.2,1.32958]
[1744307284888,1.32951,1505.4,1505.2,3.911]
[1744307285074,3.6196,1505.5,1505.2,3.911]
[1744307285275,0.00994199,1505.6,1505.5,1.32936]
[1744307285688,1.33926199,1505.6,1505.4,3.911]
[1744307285988,3.32342,1505.5,1505.1,6.8113]
[1744307286189,3.6196,1505.4,1505.3,1.32954]
[1744307286485,1.32949,1505.4,1505.3,1.32954]
[1744307286684,6.53143,1505.4,1505.0,3.7757]
[1744307286890,6.53187,1505.2,1504.8,1.32992]
[1744307287092,1.32984,1505.0,1504.9,1.32985]
[1744307287287,3.8373,1505.1,1504.6,3.655]
[1744307287484,1.33014,1504.7,1504.6,1.33015]
[1744307287787,3.32534,1504.7,1504.2,3.655]
[1744307287992,3.8373,1504.6,1504.3,1.33034]
[1744307288178,1.33042,1504.3,1504.2,1.33045]
[1744307288485,1.33042,1504.3,1504.2,1.33051]
[1744307288678,1.3305,1504.3,1504.1,8.20044]
[1744307288879,1.33027,1504.5,1504.4,1.33033]
[1744307289092,6.54275199,1504.8,1504.1,15.19619]
[1744307289093,7.16268,1504.7,1504.3,1.33037]
[1744307289384,1.33023,1504.6,1504.3,3.2078]
[1744307289583,5.16741,1504.7,1504.3,6.53384]
[1744307289783,5.16745,1504.7,1504.3,6.53384]
[1744307289989,0.00994199,1504.8,1504.7,1.33007]
[1744307290184,0.00994199,1504.8,1504.7,9.53787]
[1744307290383,1e-08,1504.8,1504.7,9.53787]
[1744307290785,1.32933,1505.6,1505.1,3.3241]
[1744307290988,1.32933,1505.6,1505.5,1.32931]
[1744307290989,1.32927,1505.6,1505.5,1.32931]
[1744307291192,3.7018,1505.7,1505.5,1.32929]
[1744307291388,3.7018,1505.7,1505.4,3.2078]
[1744307291581,1.32915,1505.8,1505.6,1.32927]
[1744307291784,3.7018,1505.9,1505.4,3.2078]
[1744307291996,1.32916,1505.8,1505.5,0.00994198]
[1744307292192,1.32916,1505.8,1505.6,1.32919]
[1744307292384,1.32916,1505.8,1505.5,0.00994198]
[1744307292586,6.39728849,1505.8,1505.6,1.32919]
[1744307292787,6.39728849,1505.8,1505.7,1.32918]
[1744307292994,5.06812849,1505.8,1505.7,1.32918]
[1744307293492,8.81802849,1505.8,1505.7,1.32918]
[1744307293689,8.81802849,1505.8,1505.5,0.00994198]
[1744307294087,10.14714849,1505.8,1505.5,0.00994198]
[1744307294286,10.14715849,1505.8,1505.6,1.32919]
[1744307294590,1.32927,1505.6,1505.5,0.00994198]
[1744307295190,5.07917,1505.6,1505.5,0.00994198]
[1744307295394,3.7499,1505.6,1505.5,4.54710198]
[1744307295699,5.06812849,1505.8,1505.7,1.32918]
[1744307295884,5.06812849,1505.8,1505.7,4.53698]
[1744307296996,6.39722849,1505.8,1505.5,10.64074198]
[1744307297198,3.7237,1505.8,1505.5,0.00994198]
[1744307297398,1.32927,1505.6,1505.5,0.00994198]
[1744307297795,6.32927,1505.6,1505.5,0.00994198]
[1744307298099,10.05297,1505.6,1505.5,0.00994198]
[1744307299487,3.7237,1505.6,1505.5,1.33930198]
[1744307299889,1.32921,1505.7,1505.6,1.32927]
[1744307300090,1.32921,1505.7,1505.6,4.53707]
[1744307300293,0.00994199,1505.9,1505.8,1.3291]
[1744307300794,5.11481199,1505.9,1505.8,1.3291]
[1744307300993,3.78574199,1505.9,1505.7,1.32914]
[1744307301196,1.32927,1505.7,1505.5,1.33923198]
[1744307301492,7.72752475,1505.9,1505.8,1.3291]
[1744307301799,11.53362475,1505.9,1505.8,1.3291]
[1744307301996,12.86263475,1505.9,1505.8,1.3291]
[1744307302798,11.53362475,1505.9,1505.8,1.3291]
[1744307303095,7.72752475,1505.9,1505.8,1.3291]
[1744307303893,7.72752475,1505.9,1505.8,9.5369]
[1744307304296,7.72752475,1505.9,1505.8,6.3291]
[1744307304494,7.72752475,1505.9,1505.8,9.5369]
[1744307305001,9.05653475,1505.9,1505.8,8.2078]
[1744307305199,11.05005475,1505.9,1505.6,1.32921]
[1744307305403,11.05005475,1505.9,1505.7,1.32918]
[1744307305404,5.11203,1505.8,1505.7,1.32918]
[1744307305805,1.32918,1505.7,1505.6,5.21622]
[1744307305992,3.7829,1505.7,1505.6,5.21622]
[1744307306300,0.00994199,1505.9,1505.8,1.3291]
[1744307306506,0.00994199,1505.9,1505.8,4.5369]
[1744307306806,0.00994199,1505.9,1505.8,16.9439]
[1744307307503,1.99e-06,1505.9,1505.8,16.9439]
[1744307307800,1.99e-06,1505.9,1505.8,20.4616]
[1744307308206,1.49287216,1506.2,1506.1,1.32883]
[1744307308401,1.49287216,1506.2,1506.1,4.53663]
[1744307308801,1.49287216,1506.2,1506.1,9.53663]
[1744307309001,1.49287216,1506.2,1506.1,1.32883]
[1744307309312,1.32883,1506.1,1506.0,1.32885]
[1744307309606,1.32886,1506.1,1506.0,1.32888]
[1744307309809,5.00401,1506.1,1505.9,3.6171]
[1744307310008,5.00401,1506.1,1506.0,1.32892]
[1744307310204,3.6751,1506.1,1506.0,1.32892]
[1744307310507,0.00994199,1506.3,1506.2,1.32874]
[1744307310710,0.00994199,1506.3,1506.2,4.53654]
[1744307311009,1.32877,1506.2,1506.1,1.32876]
[1744307311211,1.32883,1506.1,1506.0,1.32889]
[1744307311408,4.90229,1506.2,1506.1,1.32883]
[1744307311709,3.5735,1506.2,1506.1,1.32883]
[1744307312309,0.00994199,1506.3,1506.2,1.32874]
[1744307312608,4.91209199,1506.3,1506.2,1.32874]
[1744307312912,3.58344199,1506.3,1506.2,1.32874]
[1744307313709,3.58344199,1506.3,1506.2,4.53654]
[1744307314401,0.00994199,1506.3,1506.2,4.53654]
[1744307315020,0.00994199,1506.3,1506.2,9.53654]
[1744307315220,1.99e-06,1506.3,1506.2,13.05254]
[1744307315625,1.99e-06,1506.3,1506.2,13.57827216]
[1744307316625,1.99e-06,1506.3,1506.2,8.05254]
[1744307317218,1.99e-06,1506.3,1506.2,4.84474]
[1744307317523,1.99e-06,1506.3,1506.2,1.32874]
[1744307318024,3.59300199,1506.3,1506.2,1.32874]
[1744307319624,8.59300199,1506.3,1506.2,1.32874]
[1744307319822,12.20680199,1506.3,1506.2,1.32874]
[1744307320011,13.53552199,1506.3,1506.2,1.32874]
[1744307320219,1.32876,1506.2,1506.1,1.32876]
[1744307320425,1.32893,1506.0,1505.9,1.32894]
[1744307320615,6.8908,1506.2,1505.7,3.2078]
[1744307320616,3.7179,1506.1,1505.7,3.2078]
[1744307320920,3.683,1505.9,1505.8,1.32908]
[1744307323530,5.01201,1505.9,1505.8,1.32908]
[1744307323930,3.683,1505.9,1505.8,1.32908]
[1744307324121,5.01201,1505.9,1505.8,1.32908]
[1744307325228,1.32874,1506.2,1506.1,1.32883]
[1744307325534,3.32231,1506.0,1505.7,1.32911]
[1744307325733,3.32231,1506.0,1505.6,3.32319]
[1744307325926,6.53011,1506.0,1505.5,6.54114198]
[1744307326127,1.32913,1505.8,1505.7,1.32914]
[1744307326430,1.32913,1505.8,1505.5,3.33334198]
[1744307326431,3.2078,1505.8,1505.6,1.3292]
[1744307326625,3.7258,1505.7,1505.6,1.32921]
[1744307327132,3.7558,1505.9,1505.8,1.3291]
[1744307327329,3.7258,1506.0,1505.9,1.32901]
[1744307327639,3.6009,1506.2,1506.1,1.32883]
[1744307327834,7.3267,1506.2,1506.1,1.32883]
[1744307328034,1.99e-06,1506.3,1506.2,1.32874]
[1744307328238,1.99e-06,1506.3,1506.2,8.30464]
[1744307330933,1.99e-06,1506.3,1506.2,4.53654]
[1744307331134,1.99e-06,1506.3,1506.2,1.32874]
[1744307331333,3.75880199,1506.3,1506.2,1.32874]
[1744307331840,3.75880199,1506.3,1505.7,6.64575]
[1744307331841,16.14880199,1506.3,1505.6,3.2078]
[1744307332141,1.32894,1506.0,1505.9,1.32899]
[1744307332439,7.245,1506.2,1506.0,1.32889]
[1744307332737,4.77483,1506.1,1505.7,7.07237]
[1744307332940,4.77483,1506.1,1505.9,1.32893]
[1744307333135,3.446,1506.1,1506.0,1.32892]
[1744307333331,3.446,1506.1,1505.9,1.32896]
[1744307333332,4.77486,1506.1,1505.9,1.32896]
[1744307333639,1.32894,1506.0,1505.9,1.32901]
[1744307333838,3.446,1506.0,1505.9,1.32901]
[1744307334235,3.446,1506.0,1505.9,4.53681]
[1744307334435,7.245,1506.2,1506.1,1.32883]
[1744307334637,3.446,1506.2,1506.1,4.53663]
[1744307334939,1.99e-06,1506.3,1506.2,1.32874]
[1744307335137,1.99e-06,1506.3,1506.2,5.07814]
[1744307335329,1.32865199,1506.3,1506.2,1.32874]
[1744307335641,1.99e-06,1506.3,1506.2,1.32874]
[1744307336034,1.32865199,1506.3,1506.2,1.32874]
[1744307336234,1.32875,1506.2,1506.1,1.32877]
[1744307336741,1.3289,1506.1,1505.9,1.32895]
[1744307336943,3.4244,1506.0,1505.9,1.32895]
[1744307337334,3.4244,1506.0,1505.9,5.03275]
[1744307337537,3.4244,1506.0,1505.8,4.53681]
[1744307337845,3.4244,1506.0,1505.5,3.33318198]
[1744307337846,3.4244,1506.0,1505.9,1.32901]
[1744307338337,3.4244,1506.0,1505.9,4.53681]
[1744307338532,6.5904,1506.1,1505.7,6.9116]
[1744307338845,1.32927,1505.6,1505.5,0.00994198]
[1744307339343,13.71927,1505.6,1505.5,0.00994198]
[1744307339532,17.13777,1505.6,1505.5,0.00994198]
[1744307339737,20.46427,1505.6,1505.5,0.00994198]
[1744307340142,14.135,1505.6,1505.5,1.33930198]
[1744307340343,20.46427,1505.6,1505.5,0.00994198]
[1744307340631,20.46427,1505.6,1505.4,16.79983568]
[1744307340632,1.32936,1505.5,1505.4,15.47045568]
[1744307340831,7.86366,1505.5,1505.4,8.6556237]
[1744307341037,12.86366,1505.5,1505.4,8.6556237]
[1744307341639,3.3265,1505.5,1505.4,9.9850737]
[1744307341839,4.65586,1505.5,1505.4,9.9850737]
[1744307342444,3.3265,1505.5,1505.4,9.9850737]
[1744307343039,3.3265,1505.5,1505.4,4.53725]
[1744307343240,1.32945,1505.4,1505.3,0.00994199]
[1744307343438,4.53725,1505.4,1505.3,0.00994199]
[1744307343843,4.77845,1505.4,1505.3,1.33948199]
[1744307344243,7.98625,1505.4,1505.3,0.00994199]
[1744307344635,4.77845,1505.4,1505.3,0.00994199]
[1744307344841,3.449,1505.4,1505.3,1.33948199]
[1744307345847,4.77845,1505.4,1505.3,1.33948199]
[1744307346044,0.00994199,1505.5,1505.4,1.32945]